bitfinex-derivatives/quotes_SOLF0:USTF0_20250516
["timestamp","ask_amount","ask_price","bid_price","bid_amount"]
[1747382000846,62.1,172.5,172.42,7.48239653]
[1747382001153,5.7961,172.49,172.46,5.7968]
[1747382001353,62.1,172.5,172.42,7.48239653]
[1747382001657,67.896,172.5,172.42,7.48239653]
[1747382002153,67.896,172.5,172.46,5.7968]
[1747382002443,5.7961,172.49,172.46,5.7968]
[1747382002652,62.1,172.5,172.42,7.48239653]
[1747382003349,62.1,172.5,172.46,5.7968]
[1747382003643,62.1,172.5,172.42,7.48239653]
[1747382004351,62.1,172.5,172.47,5.7965]
[1747382004645,5.7951,172.52,172.45,62.18]
[1747382004947,62.08,172.52,172.45,62.18]
[1747382005950,5.7957,172.5,172.45,62.18]
[1747382006542,5.7957,172.5,172.45,67.9771]
[1747382006939,5.7961,172.49,172.45,67.9771]
[1747382007138,124.26,172.53,172.45,62.18]
[1747382007752,5.7966,172.48,172.45,62.18]
[1747382008050,124.26,172.53,172.45,62.18]
[1747382008348,5.7966,172.48,172.45,67.9773]
[1747382008950,5.7966,172.48,172.45,62.18]
[1747382010352,5.7968,172.47,172.45,62.18]
[1747382011952,5.7965,172.48,172.45,67.9773]
[1747382012952,62.18,172.53,172.45,69.66239653]
[1747382013153,1.9154,172.54,172.45,69.66239653]
[1747382013350,5.7952,172.52,172.48,5.796]
[1747382013849,1.9154,172.54,172.46,1.941]
[1747382014152,1.9154,172.54,172.45,67.9773]
[1747382014558,5.7962,172.49,172.45,67.9773]
[1747382015053,5.7962,172.49,172.46,5.7969]
[1747382020558,5.7965,172.48,172.45,67.9773]
[1747382021457,62.0,172.51,172.46,5.797]
[1747382021458,5.7962,172.49,172.46,5.797]
[1747382021663,62.0,172.51,172.45,62.18]
[1747382021861,5.796,172.5,172.46,5.7968]
[1747382023066,5.796,172.5,172.47,5.7966]
[1747382023459,62.0,172.53,172.45,69.66239653]
[1747382024062,5.795,172.52,172.49,5.7958]
[1747382024361,62.0,172.53,172.45,69.66239653]
[1747382024766,5.795,172.52,172.49,5.7958]
[1747382025374,5.7954,172.51,172.49,5.7958]
[1747382025876,5.7957,172.5,172.45,69.66239653]
[1747382026163,62.0,172.53,172.45,69.66239653]
[1747382026372,62.0,172.53,172.49,5.796]
[1747382026568,65.7663,172.54,172.49,5.796]
[1747382026870,5.7952,172.52,172.49,5.796]
[1747382027266,65.7663,172.54,172.48,5.7962]
[1747382027471,5.7954,172.51,172.48,5.7962]
[1747382027668,65.7663,172.54,172.45,69.66239653]
[1747382027867,5.7952,172.52,172.49,5.796]
[1747382029074,5.7952,172.52,172.48,5.7962]
[1747382029873,5.7954,172.51,172.48,5.7962]
[1747382031476,65.7663,172.54,172.45,69.66239653]
[1747382031877,5.7948,172.53,172.5,5.7956]
[1747382035677,5.795,172.52,172.49,5.7959]
[1747382036678,5.795,172.52,172.45,69.66239653]
[1747382037280,5.795,172.52,172.49,5.7958]
[1747382037681,5.795,172.52,172.45,69.66239653]
[1747382038481,5.795,172.52,172.49,5.7958]
[1747382039873,62.04,172.57,172.45,69.66239653]
[1747382040078,62.04,172.57,172.48,7.48239653]
[1747382040279,123.94,172.57,172.52,5.7948]
[1747382040485,5.7942,172.55,172.49,62.02]
[1747382041284,5.7938,172.56,172.49,62.02]
[1747382041593,123.94,172.57,172.49,62.02]
[1747382041782,5.7935,172.57,172.49,62.02]
[1747382042186,172.68458852,172.58,172.49,62.02]
[1747382042385,5.7935,172.57,172.49,62.02]
[1747382042784,172.68458852,172.58,172.49,62.02]
[1747382042982,178.47778852,172.58,172.49,62.02]
[1747382043281,172.68458852,172.58,172.54,5.7941]
[1747382043586,62.02,172.61,172.53,61.88]
[1747382044188,5.793,172.59,172.57,5.7931]
[1747382044580,61.88,172.62,172.53,61.88]
[1747382044785,61.88,172.62,172.53,63.737]
[1747382045189,5.7924,172.6,172.57,5.793]
[1747382045383,5.7924,172.6,172.53,63.737]
[1747382046289,5.7919,172.62,172.54,7.48239653]
[1747382046988,61.86,172.64,172.54,7.48239653]
[1747382047493,5.7922,172.61,172.58,5.7929]
[1747382047888,61.86,172.64,172.58,5.7929]
[1747382048190,61.86,172.64,172.54,7.48239653]
[1747382048789,61.86,172.64,172.57,5.7933]
[1747382050188,5.7924,172.6,172.57,5.7933]
[1747382051991,5.7921,172.61,172.58,5.793]
[1747382052292,61.86,172.64,172.54,7.48239653]
[1747382052794,5.7924,172.6,172.57,5.7932]
[1747382057898,5.7921,172.61,172.58,5.793]
[1747382058100,5.7921,172.61,172.54,7.48239653]
[1747382058796,5.7921,172.61,172.58,5.7928]
[1747382060099,5.7923,172.6,172.57,5.7932]
[1747382060796,5.7923,172.6,172.53,63.737]
[1747382061201,5.7922,172.61,172.53,63.737]
[1747382061496,5.7922,172.61,172.58,5.7929]
[1747382061891,5.7924,172.6,172.57,5.7932]
[1747382063303,5.7927,172.59,172.56,5.7935]
[1747382065911,5.7927,172.59,172.55,5.7939]
[1747382066100,5.7927,172.59,172.54,4.78607819]
[1747382066602,5.7927,172.59,172.56,5.7935]
[1747382067209,4.78607819,172.59,172.49,500.8]
[1747382067415,66.52607819,172.59,172.5,66.64607819]
[1747382067711,66.52607819,172.59,172.52,4.78607819]
[1747382067907,5.7938,172.56,172.52,10.58087819]
[1747382068412,5.7941,172.55,172.52,10.58087819]
[1747382068909,5.7944,172.54,172.51,5.7952]
[1747382069308,5.7944,172.54,172.5,61.86]
[1747382069609,5.7944,172.54,172.5,67.6556]
[1747382069910,5.7941,172.55,172.5,61.86]
[1747382070111,1.8121,172.58,172.5,61.86]
[1747382070597,5.794,172.55,172.5,61.86]
[1747382070796,1.9265,172.57,172.5,67.6556]
[1747382071210,5.7945,172.54,172.5,61.86]
[1747382071506,1.9265,172.57,172.5,61.86]
[1747382071912,5.7945,172.54,172.5,67.6556]
[1747382073715,5.7947,172.53,172.5,67.6556]
[1747382074108,1.9265,172.57,172.5,61.86]
[1747382074306,61.72,172.55,172.48,61.7]
[1747382075211,5.796,172.5,172.48,61.7]
[1747382075815,5.796,172.49,172.48,61.7]
[1747382076114,61.72,172.55,172.48,61.7]
[1747382076507,5.7958,172.5,172.48,61.7]
[1747382078919,5.7962,172.49,172.44,61.72]
[1747382079212,5.7962,172.49,172.43,61.72]
[1747382079521,5.7962,172.49,172.45,5.7972]
[1747382079817,5.7962,172.49,172.43,61.72]
[1747382080408,5.7962,172.49,172.46,5.7968]
[1747382080809,61.7,172.51,172.46,5.7968]
[1747382080810,5.7958,172.5,172.46,5.7968]
[1747382081023,5.7958,172.5,172.47,5.7966]
[1747382081520,5.7958,172.5,172.46,5.7968]
[1747382082115,5.7958,172.5,172.47,5.7967]
[1747382083720,61.7,172.51,172.48,5.7963]
[1747382084123,61.7,172.51,172.43,61.72]
[1747382084420,67.4955,172.51,172.47,5.7964]
[1747382085219,5.7958,172.5,172.47,5.7964]
[1747382085726,67.4956,172.51,172.47,5.7964]
[1747382088225,5.7957,172.5,172.47,5.7964]
[1747382089127,5.7961,172.49,172.46,5.7969]
[1747382089629,61.7,172.51,172.43,61.72]
[1747382090127,5.7959,172.5,172.47,5.7966]
[1747382091929,67.4955,172.51,172.48,5.7963]
[1747382092128,61.64,172.52,172.47,4.79194632]
[1747382092524,61.64,172.52,172.49,5.7958]
[1747382093537,5.7954,172.51,172.48,5.7963]
[1747382093724,5.7954,172.51,172.44,7.48526376]
[1747382094030,5.7957,172.5,172.44,7.48526376]
[1747382095129,5.7961,172.49,172.46,5.7968]
[1747382095337,61.64,172.52,172.43,63.5432]
[1747382096127,61.64,172.52,172.45,5.7972]
[1747382096833,5.7965,172.48,172.45,5.7972]
[1747382097941,5.7967,172.47,172.44,5.7976]
[1747382098633,5.7965,172.48,172.44,5.7976]
[1747382099029,1.8574,172.51,172.44,5.7976]
[1747382099731,5.7966,172.48,172.44,5.7976]
[1747382100033,1.8574,172.51,172.44,5.7976]
[1747382100233,5.7972,172.46,172.43,67.5179]
[1747382101936,5.7969,172.47,172.43,67.5179]
[1747382102234,5.7969,172.47,172.44,5.7977]
[1747382106027,5.7969,172.47,172.43,67.5179]
[1747382107736,5.7969,172.47,172.44,5.7976]
[1747382108141,5.7969,172.47,172.43,67.5179]
[1747382108436,61.6,172.48,172.43,61.72]
[1747382108632,61.6,172.48,172.39,92.94444124]
[1747382108830,61.6,172.48,172.39,154.52444124]
[1747382109030,61.6,172.48,172.39,61.58]
[1747382109336,5.7984,172.43,172.39,67.3791]
[1747382110140,5.7984,172.43,172.4,5.799]
[1747382110543,61.56,172.44,172.36,1.9046]
[1747382111045,5.7993,172.4,172.35,61.58]
[1747382112138,61.56,172.4,172.35,61.58]
[1747382112334,61.56,172.4,172.33,113.21197837]
[1747382112637,5.7994,172.39,172.35,5.8007]
[1747382112831,5.7994,172.39,172.33,113.21197837]
[1747382113341,67.3592,172.4,172.36,5.8003]
[1747382113543,61.56,172.4,172.36,5.8003]
[1747382113742,61.56,172.4,172.33,113.21197837]
[1747382113932,3.7403,172.44,172.33,113.21197837]
[1747382114135,61.54,172.43,172.33,113.21197837]
[1747382114531,5.7985,172.42,172.38,5.7995]
[1747382115045,61.54,172.43,172.36,5.8004]
[1747382115644,61.54,172.43,172.35,5.8006]
[1747382115944,61.54,172.43,172.32,61.58]
[1747382116741,5.7999,172.38,172.34,5.8009]
[1747382116940,67.3399,172.38,172.34,5.8009]
[1747382118446,5.8001,172.37,172.34,5.8009]
[1747382118748,61.54,172.38,172.35,5.8007]
[1747382118945,67.3399,172.38,172.32,61.58]
[1747382119249,67.3399,172.38,172.34,5.8009]
[1747382120041,61.54,172.38,172.35,5.8007]
[1747382120247,61.54,172.38,172.32,61.58]
[1747382120443,61.54,172.4,172.32,61.58]
[1747382120646,61.54,172.4,172.37,5.7999]
[1747382122263,67.3391,172.4,172.37,5.7999]
[1747382122768,5.7998,172.38,172.32,61.58]
[1747382123073,61.54,172.4,172.32,61.58]
[1747382123273,61.54,172.4,172.34,5.8008]
[1747382124664,5.8002,172.37,172.34,5.8008]
[1747382124959,61.54,172.4,172.32,61.58]
[1747382124960,61.54,172.4,172.33,5.8013]
[1747382125757,5.8003,172.37,172.33,5.8013]
[1747382125958,5.8003,172.37,172.34,5.801]
[1747382126257,61.54,172.4,172.34,5.801]
[1747382126553,5.8,172.38,172.34,5.801]
[1747382127256,5.8,172.38,172.35,5.8006]
[1747382127857,5.8,172.38,172.34,5.8009]
[1747382128157,5.8001,172.37,172.34,5.8009]
[1747382130159,5.8001,172.37,172.33,5.8013]
[1747382130858,5.8001,172.37,172.34,5.801]
[1747382131356,61.54,172.4,172.36,5.8004]
[1747382131562,61.48,172.39,172.32,61.58]
[1747382132162,61.48,172.39,172.36,5.8001]
[1747382132960,61.48,172.39,172.37,5.8]
[1747382134663,61.48,172.39,172.32,61.58]
[1747382135263,61.48,172.39,172.37,5.7998]
[1747382136565,67.2796,172.39,172.37,5.7998]
[1747382137159,67.2796,172.39,172.36,5.8002]
[1747382138166,5.7996,172.39,172.37,5.8001]
[1747382138967,123.04,172.41,172.38,5.7997]
[1747382139262,61.6,172.41,172.32,61.58]
[1747382139467,61.6,172.41,172.33,1.9699]
[1747382139656,67.3989,172.41,172.33,63.4099]
[1747382140061,67.2378,172.44,172.41,5.7985]
[1747382140663,5.7978,172.44,172.41,5.7985]
[1747382140969,122.9,172.51,172.41,61.46]
[1747382141363,5.7963,172.49,172.41,63.4475]
[1747382141769,61.46,172.51,172.41,63.4475]
[1747382142071,122.88,172.51,172.41,63.4475]
[1747382143475,122.88,172.51,172.46,5.7969]
[1747382143973,5.7964,172.49,172.46,5.7969]
[1747382144466,5.7983,172.43,172.35,7.48526376]
[1747382144673,7.48526376,172.49,172.35,7.48526376]
[1747382144674,61.4,172.46,172.35,7.48526376]
[1747382145062,5.7983,172.43,172.36,5.8002]
[1747382145371,61.4,172.46,172.36,5.8002]
[1747382145573,61.4,172.46,172.35,13.28596376]
[1747382145774,5.7987,172.41,172.35,13.28596376]
[1747382145972,61.4,172.46,172.35,7.48526376]
[1747382146173,61.4,172.46,172.36,5.8003]
[1747382146473,5.7986,172.42,172.36,5.8003]
[1747382146873,5.7988,172.41,172.36,5.8003]
[1747382147272,61.4,172.46,172.35,13.28586376]
[1747382147572,61.4,172.46,172.35,7.48526376]
[1747382147773,61.4,172.46,172.34,132.4977]
[1747382148273,5.8,172.38,172.34,132.4977]
[1747382148776,5.8001,172.37,172.34,132.4977]
[1747382148968,61.44,172.43,172.34,132.4977]
[1747382149274,5.7999,172.38,172.34,132.4977]
[1747382149472,5.7999,172.38,172.35,5.8007]
[1747382151177,5.7995,172.39,172.36,5.8004]
[1747382151479,61.44,172.43,172.34,126.6968]
[1747382151776,61.44,172.43,172.35,5.8005]
[1747382152472,5.8,172.38,172.35,5.8005]
[1747382152775,61.44,172.43,172.34,132.4978]
[1747382153375,61.36,172.42,172.34,65.2968]
[1747382153573,5.8006,172.36,172.34,65.2968]
[1747382154480,61.36,172.42,172.34,61.44]
[1747382154481,5.8007,172.35,172.34,61.44]
[1747382154870,61.36,172.38,172.3,63.3753]
[1747382155374,61.36,172.38,172.3,69.1774]
[1747382155578,5.8013,172.34,172.3,69.1774]
[1747382156076,5.8013,172.34,172.31,5.8021]
[1747382157578,5.8015,172.33,172.3,69.1775]
[1747382160177,5.8017,172.32,172.3,63.3753]
[1747382160383,61.36,172.38,172.3,63.3753]
[1747382160881,5.8006,172.36,172.33,5.8014]
[1747382163084,5.8006,172.36,172.34,5.801]
[1747382163289,5.8003,172.37,172.34,5.801]
[1747382163585,61.36,172.38,172.34,5.801]
[1747382163883,5.8004,172.36,172.33,5.8013]
[1747382164486,5.8002,172.37,172.34,5.801]
[1747382164989,61.36,172.38,172.33,5.8012]
[1747382164990,5.8004,172.36,172.33,5.8012]
[1747382165888,5.8004,172.36,172.34,5.8011]
[1747382166888,5.8004,172.36,172.33,5.8013]
[1747382167888,5.8002,172.37,172.34,5.801]
[1747382168488,5.8002,172.37,172.33,5.8013]
[1747382168690,61.36,172.38,172.33,5.8013]
[1747382168691,5.8005,172.36,172.33,5.8013]
[1747382171193,5.8005,172.36,172.32,5.8015]
[1747382171490,61.36,172.38,172.3,63.3753]
[1747382171789,61.36,172.38,172.3,61.44]
[1747382171993,5.8017,172.33,172.3,61.44]
[1747382172290,5.8017,172.33,172.3,67.2422]
[1747382174886,5.8017,172.33,172.3,61.44]
[1747382175087,5.8018,172.32,172.3,61.44]
[1747382175287,61.36,172.38,172.28,113.24643987]
[1747382175590,5.8023,172.31,172.28,119.04943987]
[1747382176789,5.8023,172.31,172.28,113.24643987]
[1747382177293,5.8019,172.32,172.28,119.04933987]
[1747382178192,5.8019,172.32,172.29,5.8027]
[1747382178792,5.8019,172.32,172.28,119.04943987]
[1747382178995,67.0612,172.34,172.28,113.24643987]
[1747382180594,67.0612,172.34,172.31,5.802]
[1747382181196,5.8016,172.33,172.3,5.8023]
[1747382185099,5.8018,172.32,172.29,5.8026]
[1747382187198,5.8016,172.33,172.3,5.8024]
[1747382191402,61.26,172.34,172.28,113.24643987]
[1747382192200,67.0613,172.34,172.3,5.8021]
[1747382192400,67.0613,172.34,172.28,113.24643987]
[1747382192702,5.8013,172.34,172.28,113.24643987]
[1747382192901,5.8013,172.34,172.31,5.8018]
[1747382193400,5.8013,172.34,172.28,113.24643987]
[1747382193401,5.8013,172.34,172.32,5.8017]
[1747382193908,5.8013,172.34,172.31,5.8019]
[1747382194712,5.8013,172.34,172.32,5.8017]
[1747382195003,5.8009,172.35,172.32,5.8017]
[1747382196204,5.8012,172.34,172.32,5.8017]
[1747382201907,5.8009,172.35,172.32,5.8017]
[1747382202107,61.16,172.36,172.33,5.8012]
[1747382202910,66.9606,172.36,172.33,5.8012]
[1747382205808,5.8006,172.36,172.33,5.8012]
[1747382212515,5.8008,172.35,172.33,5.8012]
[1747382213219,5.8008,172.35,172.32,5.8016]
[1747382215422,71.69985319,172.37,172.32,5.8016]
[1747382218223,71.69985319,172.37,172.33,5.8013]
[1747382219327,4.79965319,172.37,172.34,5.8009]
[1747382220427,4.79965319,172.37,172.33,5.8012]
[1747382224241,4.79965319,172.37,172.34,5.8011]
[1747382225844,65.81965319,172.38,172.34,5.8011]
[1747382226544,61.02,172.38,172.35,5.8006]
[1747382227142,72.03915319,172.39,172.35,5.8006]
[1747382227637,133.01915319,172.39,172.35,5.8006]
[1747382228542,5.7998,172.38,172.34,5.8009]
[1747382233049,5.7998,172.38,172.33,5.8013]
[1747382233347,4.79965319,172.37,172.33,5.8013]
[1747382233648,10.59975319,172.37,172.32,5.8014]
[1747382233843,4.79965319,172.37,172.32,5.8014]
[1747382235150,5.8001,172.37,172.32,5.8014]
[1747382235447,10.59975319,172.37,172.32,5.8017]
[1747382235648,5.8001,172.37,172.3,62.8521]
[1747382235947,10.59975319,172.37,172.3,62.8521]
[1747382236447,5.8001,172.37,172.32,5.8014]
[1747382236748,10.59975319,172.37,172.3,1.8721]
[1747382237048,10.59975319,172.37,172.32,5.8015]
[1747382238255,5.8005,172.36,172.32,5.8015]
[1747382242554,5.8008,172.35,172.31,5.8019]
[1747382246055,5.8019,172.32,172.27,5.8034]
[1747382246264,4.79965319,172.33,172.27,5.8034]
[1747382246661,4.79965319,172.33,172.26,5.8036]
[1747382246958,4.79965319,172.33,172.25,65.77965319]
[1747382247259,5.8023,172.31,172.26,5.8035]
[1747382248760,5.8023,172.31,172.27,5.8034]
[1747382248967,4.79965319,172.31,172.25,60.98]
[1747382250158,5.8027,172.3,172.26,5.8038]
[1747382253867,71.44185319,172.31,172.26,5.8038]
[1747382254670,71.44185319,172.31,172.27,5.8033]
[1747382257168,65.63965319,172.31,172.27,5.8033]
[1747382257370,65.63965319,172.31,172.28,5.8031]
[1747382257666,65.63965319,172.31,172.25,60.98]
[1747382257865,65.63965319,172.31,172.27,5.8031]
[1747382258573,71.44175319,172.31,172.27,5.8031]
[1747382259367,65.63965319,172.31,172.28,5.8031]
[1747382260070,71.44175319,172.31,172.27,5.8033]
[1747382261668,5.8025,172.3,172.26,5.8037]
[1747382262273,71.44185319,172.31,172.27,5.8034]
[1747382263173,65.63965319,172.31,172.27,5.8034]
[1747382264672,71.44175319,172.31,172.27,5.8034]
[1747382266174,5.8024,172.3,172.27,5.8034]
[1747382267074,5.8024,172.3,172.26,5.8036]
[1747382267775,71.44195319,172.31,172.27,5.8034]
[1747382268676,5.8025,172.3,172.27,5.8034]
[1747382269977,71.44185319,172.31,172.27,5.8034]
[1747382271982,65.63965319,172.31,172.28,5.8029]
[1747382273386,71.44175319,172.31,172.28,5.8029]
[1747382273885,65.63965319,172.31,172.28,5.8029]
[1747382274183,65.63965319,172.31,172.27,5.8033]
[1747382274384,71.44195319,172.31,172.27,5.8033]
[1747382277589,71.44195319,172.31,172.28,5.8031]
[1747382280188,5.8025,172.3,172.27,5.8034]
[1747382280486,65.63965319,172.31,172.27,5.8034]
[1747382280684,71.44195319,172.31,172.27,5.8034]
[1747382281986,5.8025,172.3,172.26,5.8036]
[1747382283190,4.79965319,172.27,172.22,172.95905616]
[1747382283686,4.79965319,172.29,172.22,172.95905616]
[1747382284583,10.60265319,172.29,172.25,5.8039]
[1747382286190,10.60265319,172.29,172.26,5.8037]
[1747382286388,126.45965319,172.31,172.23,4.79965319]
[1747382286790,126.45965319,172.31,172.27,5.8032]
[1747382287289,5.8027,172.3,172.26,5.8037]
[1747382288588,5.8027,172.3,172.27,5.8034]
[1747382289492,132.26185319,172.31,172.27,5.8034]
[1747382289897,127.4622,172.31,172.27,5.8034]
[1747382291095,10.60215319,172.3,172.26,5.8036]
[1747382291797,4.79965319,172.3,172.25,5.804]
[1747382292090,121.66,172.31,172.22,112.13905616]
[1747382292091,4.79965319,172.28,172.22,112.13905616]
[1747382292286,10.60305319,172.28,172.22,112.13905616]
[1747382292484,10.60305319,172.28,172.24,5.8043]
[1747382292689,60.64,172.27,172.24,5.8043]
[1747382294093,66.4435,172.27,172.24,5.8043]
[1747382294293,66.4435,172.27,172.23,5.8046]
[1747382294593,10.60365319,172.26,172.22,112.13905616]
[1747382294793,4.79965319,172.26,172.22,112.13905616]
[1747382295593,121.28,172.27,172.19,60.64]
[1747382295895,10.60435319,172.24,172.2,5.8057]
[1747382296094,60.62,172.23,172.2,5.8057]
[1747382296998,60.62,172.23,172.21,5.8055]
[1747382298896,60.62,172.23,172.17,1.8223]
[1747382298897,60.62,172.23,172.22,5.8051]
[1747382299394,60.6,172.25,172.23,5.8047]
[1747382301706,60.6,172.25,172.23,5.8047]
[1747382301903,60.6,172.25,172.24,5.8045]
[1747382302807,60.6,172.25,172.23,5.8047]
[1747382303802,60.64,172.27,172.2,4.79965319]
[1747382304006,60.58,172.26,172.2,4.79965319]
[1747382304304,60.58,172.26,172.24,5.8042]
[1747382304706,60.58,172.26,172.2,4.79965319]
[1747382305007,66.3838,172.26,172.23,5.8046]
[1747382305807,66.3838,172.26,172.24,5.8045]
[1747382306008,66.3838,172.26,172.2,4.79965319]
[1747382306509,66.3838,172.26,172.23,5.8046]
[1747382309006,65.37965319,172.26,172.18,4.79965319]
[1747382309304,65.37965319,172.26,172.17,6.62195319]
[1747382309509,65.37965319,172.26,172.21,5.8053]
[1747382309907,5.8045,172.24,172.21,5.8053]
[1747382310307,65.37965319,172.26,172.21,5.8053]
[1747382310607,5.8043,172.25,172.21,5.8053]
[1747382310811,5.8043,172.25,172.22,5.8051]
[1747382311003,65.37965319,172.26,172.17,6.62195319]
[1747382311202,5.8041,172.25,172.17,6.62195319]
[1747382311502,5.8041,172.25,172.21,5.8053]
[1747382313110,5.8045,172.24,172.21,5.8053]
[1747382314108,10.60505319,172.22,172.19,5.8059]
[1747382314310,71.12505319,172.22,172.19,5.8059]
[1747382314610,71.12505319,172.22,172.18,5.8063]
[1747382314810,65.31965319,172.22,172.16,171.1003476]
[1747382315509,71.12475319,172.22,172.16,171.1003476]
[1747382315712,60.52,172.22,172.16,171.1003476]
[1747382316112,66.3252,172.22,172.16,171.1003476]
[1747382316308,66.3252,172.22,172.18,5.8062]
[1747382316911,5.8055,172.21,172.18,5.8062]
[1747382318112,60.52,172.22,172.18,4.79965319]
[1747382318613,60.52,172.22,172.2,5.8056]
[1747382321315,60.52,172.22,172.21,5.8055]
[1747382321815,60.52,172.22,172.18,4.79965319]
[1747382322312,60.52,172.22,172.2,5.8056]
[1747382324817,66.3253,172.22,172.19,5.806]
[1747382325714,66.3253,172.22,172.16,166.30069441]
[1747382325916,66.3253,172.22,172.16,171.1003476]
[1747382326213,66.3253,172.22,172.19,5.806]
[1747382328515,60.52,172.22,172.2,5.8058]
[1747382331917,66.3252,172.22,172.2,5.8058]
[1747382332519,5.8056,172.21,172.19,5.806]
[1747382332719,60.52,172.22,172.19,5.806]
[1747382333019,66.3253,172.22,172.16,171.1003476]
[1747382334514,66.3253,172.22,172.16,166.30069441]
[1747382334818,66.3253,172.22,172.19,5.8059]
[1747382336121,60.52,172.22,172.17,4.79965319]
[1747382336715,60.52,172.22,172.2,5.8055]
[1747382337319,66.3253,172.22,172.2,5.8055]
[1747382339421,60.52,172.22,172.21,5.8055]
[1747382340324,60.52,172.22,172.2,5.8057]
[1747382340625,66.3252,172.22,172.2,5.8057]
[1747382343428,60.52,172.22,172.2,5.8057]
[1747382345029,60.52,172.22,172.21,5.8055]
[1747382346630,1.8877,172.26,172.16,166.30069441]
[1747382346824,4.79965319,172.25,172.16,171.1003476]
[1747382347025,4.80716787,172.24,172.16,171.10786228]
[1747382347226,5.805,172.23,172.16,171.10786228]
[1747382347427,66.185,172.23,172.16,171.10786228]
[1747382347737,66.185,172.23,172.2,5.8056]
[1747382348636,60.38,172.23,172.21,5.8054]
[1747382351137,66.1848,172.23,172.2,5.8057]
[1747382353138,60.38,172.23,172.2,5.8057]
[1747382353436,60.38,172.23,172.18,5.8065]
[1747382353634,5.8053,172.22,172.18,5.8065]
[1747382354838,70.99289483,172.23,172.19,5.8061]
[1747382355027,65.18799483,172.23,172.19,5.8061]
[1747382356539,5.8052,172.22,172.19,5.8061]
[1747382357547,4.80799483,172.24,172.16,171.10868924]
[1747382357737,60.32,172.24,172.18,4.80799483]
[1747382358050,60.32,172.24,172.21,5.8052]
[1747382358943,60.32,172.24,172.22,5.8049]
[1747382359340,66.1245,172.24,172.18,4.80799483]
[1747382359851,66.1245,172.24,172.21,5.8053]
[1747382360249,5.8048,172.23,172.21,5.8053]
[1747382362057,66.1246,172.24,172.21,5.8053]
[1747382363753,6.69569483,172.26,172.18,4.80799483]
[1747382363754,4.80799483,172.26,172.18,4.80799483]
[1747382363950,65.10799483,172.26,172.2,4.80799483]
[1747382364253,70.91199483,172.26,172.23,5.8046]
[1747382365557,10.61199483,172.26,172.23,5.8046]
[1747382365757,5.8042,172.25,172.23,5.8046]
[1747382367659,66.0839,172.26,172.23,5.8046]
[1747382368458,5.8039,172.26,172.23,5.8046]
[1747382368758,66.0839,172.26,172.23,5.8046]
[1747382369764,4.80799483,172.25,172.17,1.8281]
[1747382370058,4.80799483,172.23,172.17,1.8281]
[1747382370255,4.80799483,172.23,172.19,5.806]
[1747382370659,5.8055,172.21,172.18,5.8064]
[1747382372358,5.8055,172.21,172.17,5.8068]
[1747382373262,5.8059,172.2,172.17,5.8068]
[1747382376762,5.8062,172.19,172.16,71.25499483]
[1747382376962,60.24,172.22,172.16,71.25499483]
[1747382376963,4.80799483,172.21,172.16,60.64]
[1747382377262,5.8068,172.17,172.14,5.8077]
[1747382379165,5.8066,172.18,172.14,5.8077]
[1747382379465,5.8066,172.18,172.15,5.8075]
[1747382382166,10.61419483,172.19,172.16,5.8072]
[1747382383165,5.8065,172.18,172.15,5.8074]
[1747382384067,10.61429483,172.19,172.15,5.8074]